[Event "Titled Tuesday Blitz May 4 2021"]
[White "Korchmar, Vasiliy"]
[Black "Timmermans, Mark"]
[WhiteFideId "24131750"]
[BlackFideId "1026399"]
[WhiteElo "2370"]
[BlackElo "2460"]
[Result "0-1"]
[Round "09"]
[TimeControl "180+1"]
[Date "2021.05.04"]
[WhiteClock "0:00:02"]
[BlackClock "0:01:02"]

1. d4 {[%clk 0:03:00]}  Nf6 {[%clk 0:02:58]} 2. Nf3 {[%clk 0:03:01]}  e6 {[%clk 0:02:55]} 3. Bf4 {[%clk 0:03:01]}  d5 {[%clk 0:02:56]} 4. e3 {[%clk 0:03:02]}  Bd6 {[%clk 0:02:57]} 5. Bg3 {[%clk 0:03:02]}  O-O {[%clk 0:02:55]} 6. Nbd2 {[%clk 0:03:00]}  b6 {[%clk 0:02:55]} 7. c3 {[%clk 0:02:45]}  Bb7 {[%clk 0:02:55]} 8. Bd3 {[%clk 0:02:44]}  Ne4 {[%clk 0:02:55]} 9. Qe2 {[%clk 0:02:43]}  Nd7 {[%clk 0:02:55]} 10. O-O-O {[%clk 0:02:42]}  f5 {[%clk 0:02:54]} 11. Bc2 {[%clk 0:02:41]}  a5 {[%clk 0:02:51]} 12. Nxe4 {[%clk 0:02:33]}  fxe4 {[%clk 0:02:48]} 13. Ne5 {[%clk 0:02:33]}  Bxe5 {[%clk 0:02:40]} 14. dxe5 {[%clk 0:02:34]}  Ba6 {[%clk 0:02:36]} 15. Qg4 {[%clk 0:02:33]}  Qe8 {[%clk 0:02:37]} 16. f3 {[%clk 0:02:31]}  Nc5 {[%clk 0:02:01]} 17. fxe4 {[%clk 0:02:23]}  dxe4 {[%clk 0:02:02]} 18. Bxe4 {[%clk 0:02:17]}  Qa4 {[%clk 0:02:02]} 19. Rd4 {[%clk 0:00:39]}  Qxa2 {[%clk 0:02:01]} 20. Bxa8 {[%clk 0:00:31]}  Nd3+ {[%clk 0:01:22]} 21. Rxd3 {[%clk 0:00:22]}  Bxd3 {[%clk 0:01:23]} 22. Kd2 {[%clk 0:00:08]}  Bf5 {[%clk 0:01:23]} 23. Qd4 {[%clk 0:00:02]}  Qxb2+ {[%clk 0:01:20]} 24. Ke1 {[%clk 0:00:03]}  Qa1+ {[%clk 0:01:16]} 25. Kf2 {[%clk 0:00:02]}  Qxh1 {[%clk 0:01:15]} 26. Bf3 {[%clk 0:00:01]}  Qb1 {[%clk 0:01:10]} 27. Bh4 {[%clk 0:00:02]}  h6 {[%clk 0:01:02]} 28. Be7 {[%clk 0:00:01]}  Rf7 {[%clk 0:01:02]} 29. Qd8+ {[%clk 0:00:02]}  Kh7 {[%clk 0:01:02]} 30. Qe8 {[%clk 0:00:02]}  Bg6 {[%clk 0:01:02]} 0-1


[Site "https://www.chess.com"]

[Event "Titled Tuesday Blitz May 4 2021"]
[White "Kovalev, Vladislav"]
[Black "Svidler, Peter"]
[WhiteFideId "13504398"]
[BlackFideId "4102142"]
[WhiteElo "2573"]
[BlackElo "2754"]
[Result "0-1"]
[Round "09"]
[TimeControl "180+1"]
[Date "2021.05.04"]
[WhiteClock "0:00:04"]
[BlackClock "0:00:03"]

1. e4 {[%clk 0:03:00]}  c5 {[%clk 0:02:57]} 2. Be2 {[%clk 0:02:59]}  Nf6 {[%clk 0:02:56]} 3. d3 {[%clk 0:03:00]}  d5 {[%clk 0:02:55]} 4. e5 {[%clk 0:03:00]}  Nfd7 {[%clk 0:02:54]} 5. f4 {[%clk 0:03:01]}  e6 {[%clk 0:02:53]} 6. Nf3 {[%clk 0:03:02]}  Nc6 {[%clk 0:02:53]} 7. O-O {[%clk 0:03:03]}  b5 {[%clk 0:02:52]} 8. c3 {[%clk 0:03:01]}  a5 {[%clk 0:02:48]} 9. Kh1 {[%clk 0:02:57]}  g6 {[%clk 0:02:44]} 10. Be3 {[%clk 0:02:55]}  b4 {[%clk 0:02:42]} 11. c4 {[%clk 0:02:52]}  Ne7 {[%clk 0:02:31]} 12. Nbd2 {[%clk 0:02:48]}  Bb7 {[%clk 0:02:31]} 13. Bf2 {[%clk 0:02:44]}  Nf5 {[%clk 0:02:22]} 14. cxd5 {[%clk 0:02:36]}  Bxd5 {[%clk 0:02:19]} 15. Ne4 {[%clk 0:02:36]}  h5 {[%clk 0:02:19]} 16. Nfd2 {[%clk 0:02:33]}  Be7 {[%clk 0:02:18]} 17. Nc4 {[%clk 0:02:32]}  Kf8 {[%clk 0:02:17]} 18. Rc1 {[%clk 0:02:28]}  Kg7 {[%clk 0:02:17]} 19. Bf3 {[%clk 0:02:12]}  a4 {[%clk 0:02:10]} 20. Qe2 {[%clk 0:02:01]}  Qb8 {[%clk 0:02:03]} 21. Ned2 {[%clk 0:01:37]}  Qb7 {[%clk 0:02:00]} 22. Ne4 {[%clk 0:01:28]}  Rhd8 {[%clk 0:01:55]} 23. Rfd1 {[%clk 0:01:27]}  Qa6 {[%clk 0:01:52]} 24. Qe1 {[%clk 0:01:17]}  Rac8 {[%clk 0:01:48]} 25. Qe2 {[%clk 0:01:14]}  Nb6 {[%clk 0:01:44]} 26. Qf1 {[%clk 0:01:03]}  Ba8 {[%clk 0:01:19]} 27. g3 {[%clk 0:00:52]}  Bc6 {[%clk 0:00:59]} 28. Kg1 {[%clk 0:00:50]}  Nxc4 {[%clk 0:00:57]} 29. dxc4 {[%clk 0:00:49]}  Qa8 {[%clk 0:00:57]} 30. Qe2 {[%clk 0:00:43]}  b3 {[%clk 0:00:51]} 31. a3 {[%clk 0:00:41]}  Nd4 {[%clk 0:00:48]} 32. Bxd4 {[%clk 0:00:41]}  cxd4 {[%clk 0:00:49]} 33. Qd3 {[%clk 0:00:40]}  Qa7 {[%clk 0:00:46]} 34. Nd2 {[%clk 0:00:39]}  Be8 {[%clk 0:00:46]} 35. Kg2 {[%clk 0:00:36]}  Rc7 {[%clk 0:00:45]} 36. Be4 {[%clk 0:00:30]}  Rdc8 {[%clk 0:00:44]} 37. Qe2 {[%clk 0:00:27]}  Qa5 {[%clk 0:00:38]} 38. Nf3 {[%clk 0:00:24]}  Qa6 {[%clk 0:00:37]} 39. Rxd4 {[%clk 0:00:17]}  Qb6 {[%clk 0:00:27]} 40. Rcd1 {[%clk 0:00:11]}  Bc5 {[%clk 0:00:25]} 41. Rd6 {[%clk 0:00:12]}  Bxd6 {[%clk 0:00:24]} 42. exd6 {[%clk 0:00:12]}  Rxc4 {[%clk 0:00:24]} 43. Ne5 {[%clk 0:00:10]}  Rc2 {[%clk 0:00:24]} 44. Bxc2 {[%clk 0:00:10]}  bxc2 {[%clk 0:00:25]} 45. Rc1 {[%clk 0:00:10]}  Qxd6 {[%clk 0:00:20]} 46. Rxc2 {[%clk 0:00:07]}  Rb8 {[%clk 0:00:20]} 47. Qd2 {[%clk 0:00:06]}  Qxd2+ {[%clk 0:00:15]} 48. Rxd2 {[%clk 0:00:07]}  f6 {[%clk 0:00:15]} 49. Nf3 {[%clk 0:00:05]}  Bc6 {[%clk 0:00:14]} 50. Kf2 {[%clk 0:00:06]}  Bd5 {[%clk 0:00:14]} 51. Nd4 {[%clk 0:00:06]}  Kf7 {[%clk 0:00:14]} 52. Ne2 {[%clk 0:00:06]}  Ke7 {[%clk 0:00:12]} 53. Nc3 {[%clk 0:00:07]}  Bc6 {[%clk 0:00:12]} 54. Ke3 {[%clk 0:00:07]}  e5 {[%clk 0:00:13]} 55. fxe5 {[%clk 0:00:07]}  fxe5 {[%clk 0:00:14]} 56. Rf2 {[%clk 0:00:04]}  Ke6 {[%clk 0:00:14]} 57. Rd2 {[%clk 0:00:04]}  g5 {[%clk 0:00:13]} 58. Rf2 {[%clk 0:00:04]}  g4 {[%clk 0:00:12]} 59. Rd2 {[%clk 0:00:03]}  h4 {[%clk 0:00:12]} 60. Rf2 {[%clk 0:00:04]}  hxg3 {[%clk 0:00:11]} 61. hxg3 {[%clk 0:00:04]}  Rh8 {[%clk 0:00:11]} 62. Ne4 {[%clk 0:00:05]}  Rh1 {[%clk 0:00:09]} 63. Rf6+ {[%clk 0:00:05]}  Kd7 {[%clk 0:00:08]} 64. Rf7+ {[%clk 0:00:04]}  Kd8 {[%clk 0:00:07]} 65. Nd6 {[%clk 0:00:02]}  Rg1 {[%clk 0:00:07]} 66. Rg7 {[%clk 0:00:02]}  Rxg3+ {[%clk 0:00:07]} 67. Kd2 {[%clk 0:00:01]}  Rg2+ {[%clk 0:00:05]} 68. Kc3 {[%clk 0:00:02]}  g3 {[%clk 0:00:04]} 69. Nf7+ {[%clk 0:00:02]}  Ke8 {[%clk 0:00:05]} 70. Nxe5 {[%clk 0:00:03]}  Bd5 {[%clk 0:00:05]} 71. Kd4 {[%clk 0:00:04]}  Rd2+ {[%clk 0:00:03]} 72. Kc5 {[%clk 0:00:04]}  g2 {[%clk 0:00:03]} 0-1


[Site "https://www.chess.com"]

[Event "Titled Tuesday Blitz May 4 2021"]
[White "Krivonosov, Oleg"]
[Black "AldokhinIvan"]
[WhiteFideId "11600349"]
[WhiteElo "2469"]
[BlackElo "2549"]
[Result "0-1"]
[Round "09"]
[TimeControl "180+1"]
[Date "2021.05.04"]
[WhiteClock "0:00:01"]
[BlackClock "0:00:03"]

1. Nf3 {[%clk 0:03:00]}  Nf6 {[%clk 0:02:24]} 2. c4 {[%clk 0:02:59]}  g6 {[%clk 0:02:22]} 3. Nc3 {[%clk 0:02:58]}  Bg7 {[%clk 0:02:17]} 4. e4 {[%clk 0:02:58]}  d6 {[%clk 0:02:16]} 5. d4 {[%clk 0:02:58]}  O-O {[%clk 0:02:15]} 6. Be2 {[%clk 0:02:58]}  Nc6 {[%clk 0:02:15]} 7. O-O {[%clk 0:02:57]}  Re8 {[%clk 0:02:15]} 8. d5 {[%clk 0:02:53]}  Nb4 {[%clk 0:02:15]} 9. h3 {[%clk 0:02:44]}  e6 {[%clk 0:02:15]} 10. dxe6 {[%clk 0:02:39]}  Bxe6 {[%clk 0:02:14]} 11. Nd4 {[%clk 0:02:32]}  Bd7 {[%clk 0:02:14]} 12. a3 {[%clk 0:02:26]}  Na6 {[%clk 0:02:04]} 13. Bf3 {[%clk 0:02:20]}  Nc5 {[%clk 0:02:03]} 14. Re1 {[%clk 0:02:17]}  a5 {[%clk 0:02:02]} 15. Nb3 {[%clk 0:02:15]}  Nxb3 {[%clk 0:01:42]} 16. Qxb3 {[%clk 0:02:13]}  Be6 {[%clk 0:01:28]} 17. Bf4 {[%clk 0:01:58]}  Nd7 {[%clk 0:01:25]} 18. Be2 {[%clk 0:01:40]}  Nc5 {[%clk 0:01:15]} 19. Qc2 {[%clk 0:01:38]}  a4 {[%clk 0:01:16]} 20. Rad1 {[%clk 0:01:36]}  Qf6 {[%clk 0:01:10]} 21. Be3 {[%clk 0:01:34]}  Qh4 {[%clk 0:01:01]} 22. Bd4 {[%clk 0:01:16]}  Bh6 {[%clk 0:00:29]} 23. Bf1 {[%clk 0:01:08]}  Nb3 {[%clk 0:00:25]} 24. Be3 {[%clk 0:01:05]}  Bg7 {[%clk 0:00:20]} 25. Nb5 {[%clk 0:00:50]}  Qe7 {[%clk 0:00:11]} 26. Nd4 {[%clk 0:00:46]}  Nc5 {[%clk 0:00:08]} 27. Nxe6 {[%clk 0:00:35]}  Nxe6 {[%clk 0:00:08]} 28. Qd2 {[%clk 0:00:30]}  Rad8 {[%clk 0:00:07]} 29. Qc2 {[%clk 0:00:26]}  c5 {[%clk 0:00:07]} 30. Qxa4 {[%clk 0:00:23]}  Nd4 {[%clk 0:00:05]} 31. Bxd4 {[%clk 0:00:19]}  Bxd4 {[%clk 0:00:04]} 32. Qc2 {[%clk 0:00:17]}  Qf6 {[%clk 0:00:05]} 33. b3 {[%clk 0:00:15]}  Re7 {[%clk 0:00:05]} 34. Rd3 {[%clk 0:00:15]}  Rde8 {[%clk 0:00:05]} 35. Rf3 {[%clk 0:00:14]}  Qg5 {[%clk 0:00:05]} 36. Bd3 {[%clk 0:00:12]}  Kg7 {[%clk 0:00:05]} 37. Qc1 {[%clk 0:00:09]}  Qh5 {[%clk 0:00:04]} 38. Qd1 {[%clk 0:00:08]}  f5 {[%clk 0:00:04]} 39. Rg3 {[%clk 0:00:01]}  Qh4 {[%clk 0:00:03]} 0-1


[Site "https://www.chess.com"]

[Event "Titled Tuesday Blitz May 4 2021"]
[White "Krysa, Leandro"]
[Black "Sadhwani, Raunak"]
[WhiteFideId "116807"]
[BlackFideId "35093487"]
[WhiteElo "2490"]
[BlackElo "2514"]
[Result "1/2-1/2"]
[Round "09"]
[TimeControl "180+1"]
[Date "2021.05.04"]
[WhiteClock "0:00:08"]
[BlackClock "0:00:08"]

1. e4 {[%clk 0:03:00]}  d6 {[%clk 0:03:00]} 2. d4 {[%clk 0:03:00]}  Nf6 {[%clk 0:03:01]} 3. Nc3 {[%clk 0:03:00]}  g6 {[%clk 0:03:01]} 4. Nf3 {[%clk 0:03:00]}  Bg7 {[%clk 0:03:01]} 5. Be2 {[%clk 0:03:00]}  O-O {[%clk 0:03:01]} 6. O-O {[%clk 0:03:01]}  a6 {[%clk 0:03:01]} 7. Re1 {[%clk 0:03:00]}  b5 {[%clk 0:02:57]} 8. e5 {[%clk 0:03:00]}  Nfd7 {[%clk 0:02:57]} 9. e6 {[%clk 0:02:56]}  fxe6 {[%clk 0:02:57]} 10. Ng5 {[%clk 0:02:56]}  Nb6 {[%clk 0:02:32]} 11. Bf3 {[%clk 0:02:53]}  Ra7 {[%clk 0:02:32]} 12. Nxe6 {[%clk 0:02:51]}  Bxe6 {[%clk 0:02:33]} 13. Rxe6 {[%clk 0:02:51]}  b4 {[%clk 0:02:14]} 14. Nd5 {[%clk 0:02:44]}  Nxd5 {[%clk 0:02:06]} 15. Bxd5 {[%clk 0:02:45]}  Kh8 {[%clk 0:02:06]} 16. Bg5 {[%clk 0:02:18]}  Rf5 {[%clk 0:01:32]} 17. Bxe7 {[%clk 0:01:53]}  Qd7 {[%clk 0:01:31]} 18. Bb3 {[%clk 0:01:05]}  Nc6 {[%clk 0:01:30]} 19. Bh4 {[%clk 0:00:58]}  g5 {[%clk 0:01:16]} 20. Qh5 {[%clk 0:00:41]}  Ra8 {[%clk 0:00:43]} 21. Bxg5 {[%clk 0:00:36]}  Nxd4 {[%clk 0:00:31]} 22. Re3 {[%clk 0:00:23]}  h6 {[%clk 0:00:21]} 23. Qh3 {[%clk 0:00:21]}  Nxb3 {[%clk 0:00:12]} 24. axb3 {[%clk 0:00:19]}  Kh7 {[%clk 0:00:11]} 25. Rae1 {[%clk 0:00:14]}  Qf7 {[%clk 0:00:08]} 26. Bxh6 {[%clk 0:00:12]}  Rh5 {[%clk 0:00:07]} 27. Bxg7 {[%clk 0:00:07]}  Rxh3 {[%clk 0:00:07]} 28. Rxh3+ {[%clk 0:00:08]}  Kxg7 {[%clk 0:00:06]} 29. Rg3+ {[%clk 0:00:08]}  Kh6 {[%clk 0:00:06]} 30. Rh3+ {[%clk 0:00:07]}  Kg5 {[%clk 0:00:05]} 31. Rg3+ {[%clk 0:00:08]}  Kh6 {[%clk 0:00:06]} 32. Rh3+ {[%clk 0:00:08]}  Kg7 {[%clk 0:00:06]} 33. Rg3+ {[%clk 0:00:08]}  Kh7 {[%clk 0:00:07]} 34. Rh3+ {[%clk 0:00:08]}  Kg6 {[%clk 0:00:07]} 35. Rg3+ {[%clk 0:00:08]}  Kh5 {[%clk 0:00:07]} 36. Rh3+ {[%clk 0:00:08]}  Kg6 {[%clk 0:00:07]} 37. Rg3+ {[%clk 0:00:08]}  Kh6 {[%clk 0:00:08]} 1/2-1/2


[Site "https://www.chess.com"]

[Event "Titled Tuesday Blitz May 4 2021"]
[White "Krzywda, Andrzej"]
[Black "Schut, Han"]
[WhiteFideId "1114565"]
[BlackFideId "1005561"]
[WhiteElo "2100"]
[BlackElo "2057"]
[Result "0-1"]
[Round "09"]
[TimeControl "180+1"]
[Date "2021.05.04"]
[WhiteClock "0:00:01"]
[BlackClock "0:00:08"]

1. e4 {[%clk 0:02:59]}  c5 {[%clk 0:02:59]} 2. Nc3 {[%clk 0:02:59]}  g6 {[%clk 0:02:59]} 3. d4 {[%clk 0:02:58]}  cxd4 {[%clk 0:02:58]} 4. Qxd4 {[%clk 0:02:59]}  Nf6 {[%clk 0:02:58]} 5. Nf3 {[%clk 0:02:59]}  Nc6 {[%clk 0:02:56]} 6. Qa4 {[%clk 0:02:55]}  d6 {[%clk 0:02:48]} 7. e5 {[%clk 0:02:55]}  dxe5 {[%clk 0:02:43]} 8. Nxe5 {[%clk 0:02:55]}  Bd7 {[%clk 0:02:43]} 9. Nxd7 {[%clk 0:02:51]}  Nxd7 {[%clk 0:02:36]} 10. Be3 {[%clk 0:02:31]}  Bg7 {[%clk 0:02:29]} 11. O-O-O {[%clk 0:02:26]}  Bxc3 {[%clk 0:01:47]} 12. bxc3 {[%clk 0:02:27]}  Qa5 {[%clk 0:01:44]} 13. Qxa5 {[%clk 0:02:19]}  Nxa5 {[%clk 0:01:44]} 14. Bb5 {[%clk 0:02:19]}  Nc6 {[%clk 0:01:37]} 15. Rhe1 {[%clk 0:02:14]}  O-O-O {[%clk 0:01:21]} 16. Rd2 {[%clk 0:01:52]}  Nde5 {[%clk 0:01:09]} 17. Bd4 {[%clk 0:01:48]}  f6 {[%clk 0:00:42]} 18. f4 {[%clk 0:01:39]}  Nxd4 {[%clk 0:00:18]} 19. cxd4 {[%clk 0:01:36]}  Nc6 {[%clk 0:00:18]} 20. Bxc6 {[%clk 0:01:36]}  bxc6 {[%clk 0:00:19]} 21. Rxe7 {[%clk 0:01:36]}  Rd7 {[%clk 0:00:20]} 22. Rxd7 {[%clk 0:01:32]}  Kxd7 {[%clk 0:00:20]} 23. d5 {[%clk 0:01:33]}  c5 {[%clk 0:00:19]} 24. c4 {[%clk 0:01:32]}  Re8 {[%clk 0:00:18]} 25. Kd1 {[%clk 0:01:33]}  Re4 {[%clk 0:00:18]} 26. g3 {[%clk 0:01:20]}  Rxc4 {[%clk 0:00:18]} 27. Rb2 {[%clk 0:01:21]}  Kd6 {[%clk 0:00:15]} 28. Rb7 {[%clk 0:01:20]}  h5 {[%clk 0:00:15]} 29. Rxa7 {[%clk 0:01:19]}  Kxd5 {[%clk 0:00:15]} 30. Ra6 {[%clk 0:01:19]}  Rd4+ {[%clk 0:00:15]} 31. Kc2 {[%clk 0:01:13]}  Rc4+ {[%clk 0:00:15]} 32. Kd3 {[%clk 0:01:12]}  Rd4+ {[%clk 0:00:15]} 33. Ke3 {[%clk 0:01:12]}  Re4+ {[%clk 0:00:15]} 34. Kd3 {[%clk 0:01:02]}  Rd4+ {[%clk 0:00:15]} 35. Kc3 {[%clk 0:01:02]}  Rc4+ {[%clk 0:00:15]} 36. Kb3 {[%clk 0:01:03]}  Rb4+ {[%clk 0:00:13]} 37. Ka3 {[%clk 0:00:54]}  Rb7 {[%clk 0:00:11]} 38. Rxf6 {[%clk 0:00:33]}  c4 {[%clk 0:00:12]} 39. f5 {[%clk 0:00:34]}  gxf5 {[%clk 0:00:11]} 40. Rxf5+ {[%clk 0:00:34]}  Kd4 {[%clk 0:00:12]} 41. Rxh5 {[%clk 0:00:12]}  Kc3 {[%clk 0:00:12]} 42. Ka4 {[%clk 0:00:08]}  Ra7+ {[%clk 0:00:11]} 43. Kb5 {[%clk 0:00:08]}  Rxa2 {[%clk 0:00:11]} 44. Rc5 {[%clk 0:00:08]}  Rb2+ {[%clk 0:00:11]} 45. Kc6 {[%clk 0:00:07]}  Kd4 {[%clk 0:00:09]} 46. h4 {[%clk 0:00:03]}  c3 {[%clk 0:00:08]} 47. g4 {[%clk 0:00:02]}  Kd3 {[%clk 0:00:08]} 48. h5 {[%clk 0:00:02]}  Rb4 {[%clk 0:00:08]} 49. Rxc3+ {[%clk 0:00:01]}  Kxc3 {[%clk 0:00:08]} 50. g5 {[%clk 0:00:01]}  Rh4 {[%clk 0:00:07]} 51. h6 {[%clk 0:00:01]}  Rg4 {[%clk 0:00:08]} 0-1


[Site "https://www.chess.com"]

[Event "Titled Tuesday Blitz May 4 2021"]
[White "Lagunow, Raphael"]
[Black "Bendayan Claros, Aaron"]
[WhiteFideId "24652644"]
[BlackFideId "3803392"]
[WhiteElo "2400"]
[BlackElo "2166"]
[Result "0-1"]
[Round "09"]
[TimeControl "180+1"]
[Date "2021.05.04"]
[WhiteClock "0:00:18"]
[BlackClock "0:00:08"]

1. e4 {[%clk 0:03:00]}  c6 {[%clk 0:02:52]} 2. d4 {[%clk 0:03:00]}  d5 {[%clk 0:02:52]} 3. e5 {[%clk 0:03:00]}  Bf5 {[%clk 0:02:51]} 4. Nd2 {[%clk 0:03:00]}  e6 {[%clk 0:02:51]} 5. Nb3 {[%clk 0:02:59]}  Nd7 {[%clk 0:02:50]} 6. Nf3 {[%clk 0:02:58]}  Ne7 {[%clk 0:02:50]} 7. a4 {[%clk 0:02:57]}  Rc8 {[%clk 0:02:47]} 8. Be3 {[%clk 0:02:54]}  Bg6 {[%clk 0:02:45]} 9. Be2 {[%clk 0:02:54]}  Nf5 {[%clk 0:02:45]} 10. O-O {[%clk 0:02:54]}  Be7 {[%clk 0:02:45]} 11. a5 {[%clk 0:02:52]}  O-O {[%clk 0:02:44]} 12. Rc1 {[%clk 0:02:49]}  c5 {[%clk 0:02:40]} 13. c4 {[%clk 0:02:48]}  cxd4 {[%clk 0:02:32]} 14. Bxd4 {[%clk 0:02:46]}  Nxd4 {[%clk 0:02:28]} 15. Nbxd4 {[%clk 0:02:46]}  dxc4 {[%clk 0:02:24]} 16. Bxc4 {[%clk 0:02:44]}  a6 {[%clk 0:02:23]} 17. Nb3 {[%clk 0:02:37]}  Nc5 {[%clk 0:02:11]} 18. Nxc5 {[%clk 0:02:32]}  Bxc5 {[%clk 0:02:02]} 19. Qb3 {[%clk 0:02:31]}  Qe7 {[%clk 0:01:46]} 20. Rfd1 {[%clk 0:02:23]}  Rfd8 {[%clk 0:01:45]} 21. Be2 {[%clk 0:01:53]}  Bb4 {[%clk 0:01:19]} 22. Rxd8+ {[%clk 0:01:35]}  Rxd8 {[%clk 0:01:16]} 23. Qa4 {[%clk 0:01:28]}  h6 {[%clk 0:01:08]} 24. h3 {[%clk 0:01:26]}  Rd5 {[%clk 0:00:40]} 25. Rc8+ {[%clk 0:01:22]}  Kh7 {[%clk 0:00:40]} 26. Qb3 {[%clk 0:01:16]}  Rxa5 {[%clk 0:00:33]} 27. Nh4 {[%clk 0:01:13]}  Qxh4 {[%clk 0:00:25]} 28. Rc4 {[%clk 0:01:10]}  Qg5 {[%clk 0:00:17]} 29. Rxb4 {[%clk 0:01:02]}  Qxe5 {[%clk 0:00:14]} 30. Bf1 {[%clk 0:00:47]}  b5 {[%clk 0:00:14]} 31. Qd1 {[%clk 0:00:44]}  Ra2 {[%clk 0:00:09]} 32. b3 {[%clk 0:00:30]}  Qb2 {[%clk 0:00:07]} 33. Rf4 {[%clk 0:00:30]}  Qe5 {[%clk 0:00:06]} 34. Rf3 {[%clk 0:00:28]}  a5 {[%clk 0:00:06]} 35. Re3 {[%clk 0:00:27]}  Qa1 {[%clk 0:00:05]} 36. Qxa1 {[%clk 0:00:17]}  Rxa1 {[%clk 0:00:06]} 37. f3 {[%clk 0:00:16]}  a4 {[%clk 0:00:06]} 38. bxa4 {[%clk 0:00:17]}  bxa4 {[%clk 0:00:06]} 39. Kf2 {[%clk 0:00:18]}  a3 {[%clk 0:00:06]} 40. Bc4 {[%clk 0:00:19]}  a2 {[%clk 0:00:06]} 41. Ra3 {[%clk 0:00:19]}  Bb1 {[%clk 0:00:04]} 42. Kg3 {[%clk 0:00:19]}  Bg6 {[%clk 0:00:04]} 43. Ra7 {[%clk 0:00:20]}  Rc1 {[%clk 0:00:04]} 44. Bxa2 {[%clk 0:00:19]}  Ra1 {[%clk 0:00:04]} 45. Ra6 {[%clk 0:00:19]}  h5 {[%clk 0:00:04]} 46. Bc4 {[%clk 0:00:20]}  Rxa6 {[%clk 0:00:04]} 47. Bxa6 {[%clk 0:00:21]}  Kh6 {[%clk 0:00:04]} 48. Kh4 {[%clk 0:00:22]}  Bc2 {[%clk 0:00:03]} 49. f4 {[%clk 0:00:23]}  f6 {[%clk 0:00:03]} 50. Kg3 {[%clk 0:00:24]}  g5 {[%clk 0:00:04]} 51. Kf2 {[%clk 0:00:25]}  Bb3 {[%clk 0:00:04]} 52. Kf3 {[%clk 0:00:26]}  Bd5+ {[%clk 0:00:04]} 53. Kg3 {[%clk 0:00:26]}  Kg6 {[%clk 0:00:05]} 54. fxg5 {[%clk 0:00:26]}  fxg5 {[%clk 0:00:05]} 55. Be2 {[%clk 0:00:26]}  h4+ {[%clk 0:00:05]} 56. Kf2 {[%clk 0:00:27]}  Kf5 {[%clk 0:00:05]} 57. g3 {[%clk 0:00:28]}  e5 {[%clk 0:00:05]} 58. Bg4+ {[%clk 0:00:27]}  Ke4 {[%clk 0:00:04]} 59. gxh4 {[%clk 0:00:27]}  gxh4 {[%clk 0:00:04]} 60. Bf3+ {[%clk 0:00:27]}  Kd4 {[%clk 0:00:05]} 61. Be2 {[%clk 0:00:19]}  Be4 {[%clk 0:00:05]} 62. Bg4 {[%clk 0:00:19]}  Kd5 {[%clk 0:00:05]} 63. Ke3 {[%clk 0:00:19]}  Bg2 {[%clk 0:00:04]} 64. Bc8 {[%clk 0:00:19]}  Bf1 {[%clk 0:00:04]} 65. Bb7+ {[%clk 0:00:19]}  Kd6 {[%clk 0:00:04]} 66. Bc8 {[%clk 0:00:19]}  Ke7 {[%clk 0:00:04]} 67. Bg4 {[%clk 0:00:20]}  Kf6 {[%clk 0:00:04]} 68. Ke4 {[%clk 0:00:20]}  Bg2+ {[%clk 0:00:04]} 69. Ke3 {[%clk 0:00:21]}  Bd5 {[%clk 0:00:05]} 70. Bd7 {[%clk 0:00:20]}  Be6 {[%clk 0:00:05]} 71. Bxe6 {[%clk 0:00:20]}  Kxe6 {[%clk 0:00:06]} 72. Ke4 {[%clk 0:00:20]}  Kf6 {[%clk 0:00:06]} 73. Ke3 {[%clk 0:00:20]}  Kf5 {[%clk 0:00:07]} 74. Kf3 {[%clk 0:00:21]}  e4+ {[%clk 0:00:07]} 75. Ke3 {[%clk 0:00:22]}  Ke5 {[%clk 0:00:08]} 76. Ke2 {[%clk 0:00:21]}  Kf4 {[%clk 0:00:08]} 77. Kf2 {[%clk 0:00:22]}  e3+ {[%clk 0:00:09]} 78. Kg2 {[%clk 0:00:23]}  e2 {[%clk 0:00:08]} 79. Kg1 {[%clk 0:00:24]}  e1=Q+ {[%clk 0:00:08]} 80. Kg2 {[%clk 0:00:18]}  Qg3+ {[%clk 0:00:08]} 81. Kf1 {[%clk 0:00:18]}  Qxh3+ {[%clk 0:00:08]} 0-1


[Site "https://www.chess.com"]

[Event "Titled Tuesday Blitz May 4 2021"]
[White "Langner, Ladislav"]
[Black "Gretarsson, Helgi Ass"]
[WhiteFideId "300403"]
[BlackFideId "2300699"]
[WhiteElo "2346"]
[BlackElo "2519"]
[Result "0-1"]
[Round "09"]
[TimeControl "180+1"]
[Date "2021.05.04"]
[WhiteClock "0:00:18"]
[BlackClock "0:00:16"]

1. e4 {[%clk 0:03:00]}  g6 {[%clk 0:02:59]} 2. d4 {[%clk 0:03:00]}  Bg7 {[%clk 0:03:00]} 3. c3 {[%clk 0:03:00]}  c5 {[%clk 0:02:57]} 4. Nf3 {[%clk 0:02:56]}  Qc7 {[%clk 0:02:36]} 5. Be3 {[%clk 0:02:55]}  Nf6 {[%clk 0:02:33]} 6. Nbd2 {[%clk 0:02:45]}  b6 {[%clk 0:02:24]} 7. Bd3 {[%clk 0:02:39]}  Bb7 {[%clk 0:02:23]} 8. O-O {[%clk 0:02:37]}  O-O {[%clk 0:02:13]} 9. h3 {[%clk 0:02:37]}  d5 {[%clk 0:02:12]} 10. e5 {[%clk 0:02:26]}  Ne4 {[%clk 0:02:12]} 11. Bxe4 {[%clk 0:02:18]}  dxe4 {[%clk 0:02:11]} 12. Ng5 {[%clk 0:02:18]}  Qc6 {[%clk 0:02:07]} 13. Ngxe4 {[%clk 0:02:12]}  f5 {[%clk 0:02:02]} 14. exf6 {[%clk 0:02:12]}  exf6 {[%clk 0:02:02]} 15. f3 {[%clk 0:01:31]}  f5 {[%clk 0:01:49]} 16. Ng5 {[%clk 0:01:21]}  h6 {[%clk 0:01:49]} 17. Qb3+ {[%clk 0:01:20]}  c4 {[%clk 0:01:49]} 18. Nxc4 {[%clk 0:01:13]}  Qd5 {[%clk 0:01:49]} 19. Ne4 {[%clk 0:01:03]}  fxe4 {[%clk 0:01:33]} 20. fxe4 {[%clk 0:01:03]}  Qe6 {[%clk 0:01:16]} 21. Nd6 {[%clk 0:01:02]}  Rxf1+ {[%clk 0:01:00]} 22. Rxf1 {[%clk 0:01:01]}  Qxb3 {[%clk 0:01:00]} 23. axb3 {[%clk 0:01:01]}  Ba6 {[%clk 0:01:00]} 24. c4 {[%clk 0:00:59]}  Nc6 {[%clk 0:00:58]} 25. e5 {[%clk 0:00:59]}  Rd8 {[%clk 0:00:44]} 26. Ra1 {[%clk 0:00:58]}  Bc8 {[%clk 0:00:39]} 27. d5 {[%clk 0:00:45]}  Na5 {[%clk 0:00:27]} 28. Nxc8 {[%clk 0:00:42]}  Rxc8 {[%clk 0:00:26]} 29. e6 {[%clk 0:00:38]}  Bxb2 {[%clk 0:00:25]} 30. Rd1 {[%clk 0:00:34]}  Bf6 {[%clk 0:00:04]} 31. d6 {[%clk 0:00:25]}  Nc6 {[%clk 0:00:04]} 32. e7 {[%clk 0:00:23]}  Ra8 {[%clk 0:00:03]} 33. Bxh6 {[%clk 0:00:21]}  Kf7 {[%clk 0:00:03]} 34. h4 {[%clk 0:00:20]}  Ke6 {[%clk 0:00:03]} 35. Bg5 {[%clk 0:00:19]}  Bxg5 {[%clk 0:00:02]} 36. hxg5 {[%clk 0:00:19]}  Kd7 {[%clk 0:00:02]} 37. Kf2 {[%clk 0:00:19]}  a5 {[%clk 0:00:02]} 38. Re1 {[%clk 0:00:16]}  Re8 {[%clk 0:00:01]} 39. Kf3 {[%clk 0:00:15]}  Kxd6 {[%clk 0:00:02]} 40. Rd1+ {[%clk 0:00:12]}  Kxe7 {[%clk 0:00:02]} 41. Rd5 {[%clk 0:00:11]}  Ke6 {[%clk 0:00:02]} 42. Rb5 {[%clk 0:00:11]}  Rb8 {[%clk 0:00:01]} 43. c5 {[%clk 0:00:12]}  Nd4+ {[%clk 0:00:02]} 44. Ke4 {[%clk 0:00:11]}  Nxb5 {[%clk 0:00:03]} 45. c6 {[%clk 0:00:11]}  Rc8 {[%clk 0:00:03]} 46. Ke3 {[%clk 0:00:10]}  Rxc6 {[%clk 0:00:03]} 47. g4 {[%clk 0:00:11]}  Rc3+ {[%clk 0:00:04]} 48. Ke2 {[%clk 0:00:11]}  Rxb3 {[%clk 0:00:05]} 49. Kd2 {[%clk 0:00:11]}  a4 {[%clk 0:00:06]} 50. Kc2 {[%clk 0:00:12]}  a3 {[%clk 0:00:06]} 51. Kxb3 {[%clk 0:00:12]}  Nd4+ {[%clk 0:00:07]} 52. Kxa3 {[%clk 0:00:13]}  Ke5 {[%clk 0:00:08]} 53. Kb4 {[%clk 0:00:13]}  Kf4 {[%clk 0:00:09]} 54. Kc4 {[%clk 0:00:13]}  Kxg4 {[%clk 0:00:10]} 55. Kxd4 {[%clk 0:00:13]}  Kxg5 {[%clk 0:00:11]} 56. Kc4 {[%clk 0:00:13]}  Kf4 {[%clk 0:00:11]} 57. Kb5 {[%clk 0:00:14]}  g5 {[%clk 0:00:12]} 58. Kxb6 {[%clk 0:00:15]}  g4 {[%clk 0:00:13]} 59. Kc5 {[%clk 0:00:15]}  g3 {[%clk 0:00:14]} 60. Kc4 {[%clk 0:00:16]}  g2 {[%clk 0:00:14]} 61. Kd5 {[%clk 0:00:17]}  g1=Q {[%clk 0:00:15]} 62. Ke6 {[%clk 0:00:17]}  Qe1+ {[%clk 0:00:16]} 63. Kf7 {[%clk 0:00:18]}  Qa5 {[%clk 0:00:16]} 0-1


[Site "https://www.chess.com"]